[Event "Chess Festival Groningen 2023 | A"]
[Site "Groningen, Netherlands"]
[Date "2023.12.24"]
[Round "4.24"]
[White "Mierins, Emils Janis"]
[Black "Kazarjan, Gachatur"]
[Result "0-1"]
[TimeControl "90min/40moves + 30min + 30sec/move"]
[WhiteElo "2258"]
[BlackElo "2078"]

1. d4 {[%clk 01:30:57]} {[%emt 00:00:42]} d5 {[%clk 01:30:56]} 2. c4 {[%clk
01:31:22]} e6 {[%clk 01:31:24]} 3. Nf3 {[%clk 01:31:45]} c5 {[%clk 01:31:50]} 4.
cxd5 {[%clk 01:32:01]} {[%emt 00:00:05]} exd5 {[%clk 01:32:15]} {[%emt
00:00:04]} 5. g3 {[%clk 01:31:57]} {[%emt 00:00:41]} Nc6 {[%clk 01:32:34]}
{[%emt 00:00:21]} 6. Bg2 {[%clk 01:32:00]} {[%emt 00:00:05]} Nf6 {[%clk
01:32:59]} {[%emt 00:00:19]} 7. dxc5 {[%clk 01:31:50]} {[%emt 00:00:24]} Bxc5
{[%clk 01:32:59]} {[%emt 00:00:46]} 8. O-O {[%clk 01:32:14]} Ne4 {[%clk
01:31:40]} {[%emt 00:02:12]} 9. Nfd2 {[%clk 01:29:01]} {[%emt 00:03:10]} f5
{[%clk 01:26:56]} {[%emt 00:05:19]} 10. Nb3 {[%clk 01:27:00]} {[%emt 00:02:27]}
Bb6 {[%clk 01:24:42]} {[%emt 00:02:51]} 11. Nc3 {[%clk 01:27:16]} {[%emt
00:00:07]} Be6 {[%clk 01:23:55]} {[%emt 00:01:17]} 12. Na4 {[%clk 01:27:18]}
{[%emt 00:00:48]} O-O {[%clk 01:20:25]} {[%emt 00:04:12]} 13. Nxb6 {[%clk
01:21:16]} {[%emt 00:05:59]} Qxb6 {[%clk 01:18:45]} {[%emt 00:02:37]} 14. Be3
{[%clk 01:21:16]} {[%emt 00:00:09]} Qb4 {[%clk 01:09:23]} {[%emt 00:09:45]} 15.
a3 {[%clk 01:01:59]} {[%emt 00:19:47]} Qe7 {[%clk 00:57:49]} {[%emt 00:12:05]}
16. Nd4 {[%clk 01:00:48]} {[%emt 00:02:02]} Rfd8 {[%clk 00:48:43]} {[%emt
00:09:16]} 17. Rc1 {[%clk 00:58:06]} {[%emt 00:03:11]} Rac8 {[%clk 00:46:52]}
{[%emt 00:02:20]} 18. Qa4 {[%clk 00:57:40]} {[%emt 00:01:19]} Nxd4 {[%clk
00:31:07]} {[%emt 00:16:10]} 19. Bxd4 {[%clk 00:56:07]} {[%emt 00:01:46]} a6
{[%clk 00:29:25]} {[%emt 00:02:15]} 20. Bb6 {[%clk 00:39:13]} {[%emt 00:17:20]}
Rd6 {[%clk 00:19:41]} {[%emt 00:10:14]} 21. Rxc8+ {[%clk 00:31:06]} {[%emt
00:08:36]} Bxc8 {[%clk 00:20:03]} {[%emt 00:00:13]} 22. Qa5 {[%clk 00:23:04]}
{[%emt 00:08:28]} Qe6 {[%clk 00:17:32]} {[%emt 00:03:01]} 23. Be3 {[%clk
00:21:23]} {[%emt 00:02:13]} b6 {[%clk 00:12:24]} {[%emt 00:05:39]} 24. Qa4
{[%clk 00:20:30]} {[%emt 00:01:51]} Rc6 {[%clk 00:12:17]} {[%emt 00:00:13]} 25.
Rd1 {[%clk 00:18:37]} {[%emt 00:02:15]} Bb7 {[%clk 00:10:16]} {[%emt 00:02:35]}
26. Qb3 {[%clk 00:17:12]} {[%emt 00:01:54]} Rd6 {[%clk 00:09:52]} {[%emt
00:00:54]} 27. Rc1 {[%clk 00:15:51]} {[%emt 00:01:49]} b5 {[%clk 00:08:26]}
{[%emt 00:02:25]} 28. a4 {[%clk 00:15:59]} Bc6 {[%clk 00:08:20]} {[%emt
00:00:29]} 29. Bf4 {[%clk 00:14:47]} {[%emt 00:02:03]} Rd8 {[%clk 00:08:26]}
{[%emt 00:00:13]} 30. Qd3 {[%clk 00:12:36]} {[%emt 00:02:31]} h6 {[%clk
00:07:01]} {[%emt 00:01:55]} 31. Bh3 {[%clk 00:11:42]} {[%emt 00:01:24]} g5
{[%clk 00:02:04]} {[%emt 00:05:49]} 32. Bc7 {[%clk 00:10:25]} {[%emt 00:01:25]}
Rc8 {[%clk 00:02:01]} {[%emt 00:00:43]} 33. Ba5 {[%clk 00:10:22]} {[%emt
00:00:24]} bxa4 {[%clk 00:01:41]} {[%emt 00:00:50]} 34. Qxa6 {[%clk 00:09:11]}
{[%emt 00:01:43]} Bd7 {[%clk 00:02:01]} {[%emt 00:00:16]} 35. Rxc8+ {[%clk
00:09:32]} {[%emt 00:00:05]} Bxc8 {[%clk 00:02:30]} 36. Qb5 {[%clk 00:09:14]}
{[%emt 00:01:17]} Qd7 {[%clk 00:01:23]} {[%emt 00:01:04]} 37. Qb8 {[%clk
00:08:25]} {[%emt 00:01:22]} Kf7 {[%clk 00:01:20]} {[%emt 00:01:02]} 38. Bc7
{[%clk 00:06:03]} {[%emt 00:02:40]} Nc5 {[%clk 00:01:00]} {[%emt 00:00:29]} 39.
Be5 {[%clk 00:05:38]} {[%emt 00:00:55]} Qc6 {[%clk 00:00:37]} {[%emt 00:00:53]}
40. Bc3 {[%clk 00:00:55]} {[%emt 00:05:13]} Ne4 {[%clk 00:00:35]} {[%emt
00:00:40]} 41. Bd4 {[%clk 00:29:51]} {[%emt 00:01:26]} Qc1+ {[%clk 00:21:19]}
{[%emt 00:09:55]} 42. Kg2 {[%clk 00:28:21]} {[%emt 00:01:51]} Nd2 {[%clk
00:20:18]} {[%emt 00:01:38]} 43. Qa7+ {[%clk 00:27:29]} {[%emt 00:01:14]} Ke8
{[%clk 00:20:37]} {[%emt 00:00:13]} 44. Qxa4+ {[%clk 00:27:32]} {[%emt
00:00:31]} Bd7 {[%clk 00:20:58]} {[%emt 00:00:06]} 45. Qa8+ {[%clk 00:26:26]}
{[%emt 00:01:33]} Ke7 {[%clk 00:18:56]} {[%emt 00:02:56]} 46. Bf6+ {[%clk
00:24:14]} {[%emt 00:02:18]} Kf7 {[%clk 00:18:36]} {[%emt 00:01:24]} 47. Qxd5+
{[%clk 00:22:17]} {[%emt 00:01:52]} Be6 {[%clk 00:18:50]} {[%emt 00:00:46]} 0-1

[Event "Chess Festival Groningen 2023 | A"]
[Site "Groningen, Netherlands"]
[Date "2023.12.24"]
[Round "4.25"]
[White "Boeren, Jurriaan"]
[Black "Toktomushev, Teimur"]
[Result "1/2-1/2"]
[TimeControl "90min/40moves + 30min + 30sec/move"]
[WhiteElo "2102"]
[BlackElo "2249"]

1. e4 {[%clk 01:30:58]} c5 {[%clk 01:30:59]} 2. Nf3 {[%clk 01:31:23]} e6 {[%clk
01:31:20]} {[%emt 00:00:17]} 3. d4 {[%clk 01:31:50]} cxd4 {[%clk 01:31:41]}
{[%emt 00:00:04]} 4. Nxd4 {[%clk 01:32:17]} a6 {[%clk 01:31:57]} {[%emt
00:00:09]} 5. c4 {[%clk 01:32:20]} {[%emt 00:00:26]} Nf6 {[%clk 01:32:21]}
{[%emt 00:00:29]} 6. Nc3 {[%clk 01:32:40]} {[%emt 00:00:08]} Qc7 {[%clk
01:32:44]} 7. a3 {[%clk 01:33:05]} b6 {[%clk 01:33:06]} {[%emt 00:00:05]} 8. f4
{[%clk 01:33:09]} {[%emt 00:00:21]} d6 {[%clk 01:33:19]} {[%emt 00:00:52]} 9.
Bd3 {[%clk 01:33:33]} Bb7 {[%clk 01:32:31]} {[%emt 00:00:49]} 10. f5 {[%clk
01:33:41]} {[%emt 00:00:24]} Nc6 {[%clk 01:17:46]} {[%emt 00:15:12]} 11. Be3
{[%clk 01:32:56]} {[%emt 00:01:14]} Nxd4 {[%clk 01:08:23]} {[%emt 00:09:55]} 12.
Bxd4 {[%clk 01:33:07]} {[%emt 00:00:45]} Be7 {[%clk 01:03:28]} {[%emt
00:05:03]} 13. O-O {[%clk 01:32:48]} {[%emt 00:01:16]} O-O {[%clk 00:53:46]}
{[%emt 00:10:18]} 14. Qf3 {[%clk 01:30:37]} {[%emt 00:02:03]} Rae8 {[%clk
00:21:47]} {[%emt 00:32:45]} 15. Qh3 {[%clk 01:26:04]} {[%emt 00:05:08]} Bd8
{[%clk 00:13:10]} {[%emt 00:08:46]} 16. Rae1 {[%clk 01:20:52]} {[%emt
00:06:04]} h6 {[%clk 00:03:23]} {[%emt 00:10:01]} 17. Qg3 {[%clk 01:11:30]}
{[%emt 00:09:47]} e5 {[%clk 00:00:41]} {[%emt 00:03:44]} 18. Be3 {[%clk
01:11:49]} Nh5 {[%clk 00:01:00]} {[%emt 00:00:09]} 19. Qg4 {[%clk 01:03:19]}
{[%emt 00:08:40]} Nf4 {[%clk 00:01:26]} {[%emt 00:00:50]} 20. Bb1 {[%clk
01:01:55]} {[%emt 00:01:07]} Qxc4 {[%clk 00:00:39]} {[%emt 00:01:21]} 21. Ba2
{[%clk 01:01:13]} {[%emt 00:01:29]} Qc8 {[%clk 00:00:34]} {[%emt 00:00:15]} 22.
Rd1 {[%clk 00:43:56]} {[%emt 00:17:49]} Qd7 {[%clk 00:00:33]} {[%emt 00:00:30]}
23. Rxf4 {[%clk 00:43:03]} {[%emt 00:01:23]} exf4 {[%clk 00:00:51]} {[%emt
00:00:30]} 24. Bd4 {[%clk 00:43:23]} g5 {[%clk 00:00:52]} {[%emt 00:00:20]} 25.
Qh5 {[%clk 00:42:47]} {[%emt 00:01:07]} Kh7 {[%clk 00:01:06]} {[%emt 00:00:18]}
26. Rd3 {[%clk 00:42:35]} {[%emt 00:00:40]} g4 {[%clk 00:00:44]} {[%emt
00:00:55]} 27. Qxg4 {[%clk 00:39:53]} {[%emt 00:03:43]} Rg8 {[%clk 00:01:12]}
28. Qxf4 {[%clk 00:36:42]} {[%emt 00:03:08]} Bg5 {[%clk 00:00:56]} {[%emt
00:00:50]} 29. Qf3 {[%clk 00:36:52]} {[%emt 00:00:18]} Bc1 {[%clk 00:00:32]}
{[%emt 00:00:51]} 30. Nd5 {[%clk 00:35:15]} {[%emt 00:02:08]} Bxd5 {[%clk
00:00:59]} {[%emt 00:00:53]} 31. Bxd5 {[%clk 00:35:42]} Rc8 {[%clk 00:00:39]}
{[%emt 00:00:19]} 32. Bc3 {[%clk 00:33:29]} {[%emt 00:02:53]} Rxc3 {[%clk
00:00:35]} {[%emt 00:00:08]} 33. bxc3 {[%clk 00:33:04]} {[%emt 00:00:58]} Bxa3
{[%clk 00:00:38]} {[%emt 00:00:30]} 34. Qh5 {[%clk 00:33:14]} {[%emt 00:00:12]}
Rg5 {[%clk 00:00:39]} {[%emt 00:00:38]} 35. Qxf7+ {[%clk 00:17:20]} {[%emt
00:16:18]} Qxf7 {[%clk 00:01:08]} {[%emt 00:00:04]} 36. Bxf7 {[%clk 00:17:49]}
Rg4 {[%clk 00:00:34]} {[%emt 00:01:00]} 37. Rf3 {[%clk 00:11:47]} {[%emt
00:06:32]} Kg7 {[%clk 00:00:36]} {[%emt 00:00:30]} 38. Bd5 {[%clk 00:12:02]}
{[%emt 00:00:12]} Kf6 {[%clk 00:00:54]} {[%emt 00:00:35]} 39. g3 {[%clk
00:10:53]} {[%emt 00:01:46]} Rg7 {[%clk 00:01:03]} {[%emt 00:00:14]} 40. Kf2
{[%clk 00:08:01]} {[%emt 00:03:38]} b5 {[%clk 00:00:33]} {[%emt 00:00:23]} 41.
h3 {[%clk 00:02:00]} Rc7 {[%clk 00:21:24]} {[%emt 00:16:50]} 42. Ke2 {[%clk
00:30:48]} a5 {[%clk 00:16:43]} {[%emt 00:06:52]} 43. h4 {[%clk 00:26:28]}
{[%emt 00:04:23]} h5 {[%clk 00:08:37]} {[%emt 00:08:24]} 44. Kd1 {[%clk
00:16:27]} {[%emt 00:10:37]} a4 {[%clk 00:04:02]} {[%emt 00:05:31]} 45. Ba2
{[%clk 00:15:35]} {[%emt 00:00:51]} Bc5 {[%clk 00:03:14]} {[%emt 00:01:16]} 46.
Bd5 {[%clk 00:13:17]} {[%emt 00:02:48]} a3 {[%clk 00:02:11]} {[%emt 00:01:53]}
47. Bb3 {[%clk 00:10:03]} {[%emt 00:03:46]} Ra7 {[%clk 00:01:45]} {[%emt
00:00:33]} 48. Ba2 {[%clk 00:10:29]} {[%emt 00:00:15]} Re7 {[%clk 00:00:46]}
{[%emt 00:01:23]} 49. Be6 {[%clk 00:09:00]} {[%emt 00:02:14]} Ra7 {[%clk
00:00:49]} {[%emt 00:00:10]} 50. Ba2 {[%clk 00:09:24]} {[%emt 00:00:09]} Ra4
{[%clk 00:00:39]} {[%emt 00:00:35]} 51. c4 {[%clk 00:05:53]} {[%emt 00:04:00]}
bxc4 {[%clk 00:00:52]} {[%emt 00:00:17]} 52. Rc3 {[%clk 00:03:13]} {[%emt
00:03:10]} Ke5 {[%clk 00:00:39]} {[%emt 00:00:43]} 53. Rxc4 {[%clk 00:02:26]}
{[%emt 00:01:18]} Rxc4 {[%clk 00:01:05]} {[%emt 00:00:32]} 54. Bxc4 {[%clk
00:02:55]} Kxe4 {[%clk 00:01:20]} {[%emt 00:00:08]} 55. Kc2 {[%clk 00:02:42]}
{[%emt 00:00:22]} Kxf5 {[%clk 00:00:33]} {[%emt 00:01:17]} 56. Be2 {[%clk
00:03:00]} {[%emt 00:00:33]} Kg6 {[%clk 00:00:35]} {[%emt 00:00:13]} 57. Bf3
{[%clk 00:01:49]} {[%emt 00:01:35]} Bf2 {[%clk 00:00:51]} {[%emt 00:00:19]} 58.
g4 {[%clk 00:02:15]} {[%emt 00:00:09]} hxg4 {[%clk 00:01:08]} {[%emt 00:00:09]}
59. Bxg4 {[%clk 00:02:41]} Bd4 {[%clk 00:00:41]} {[%emt 00:00:55]} 60. Kb3
{[%clk 00:02:39]} {[%emt 00:00:48]} Bb2 {[%clk 00:01:04]} 61. Bf3 {[%clk
00:02:28]} {[%emt 00:00:53]} Kf5 {[%clk 00:01:26]} {[%emt 00:00:09]} 62. h5
{[%clk 00:02:43]} {[%emt 00:00:05]} Kf4 {[%clk 00:01:50]} 63. Bd5 {[%clk
00:02:31]} {[%emt 00:00:48]} Kg5 {[%clk 00:01:42]} {[%emt 00:00:25]} 64. Bf3
{[%clk 00:02:52]} {[%emt 00:00:22]} Kf5 {[%clk 00:02:07]} {[%emt 00:00:08]} 65.
Ka2 {[%clk 00:02:11]} {[%emt 00:00:54]} Bc1 {[%clk 00:01:56]} {[%emt 00:00:45]}
66. Kb3 {[%clk 00:02:22]} {[%emt 00:00:15]} Ke5 {[%clk 00:02:13]} {[%emt
00:00:15]} 67. Ka2 {[%clk 00:02:10]} {[%emt 00:01:03]} d5 {[%clk 00:02:37]}
{[%emt 00:00:08]} 68. Bxd5 {[%clk 00:02:16]} {[%emt 00:00:09]} Kxd5 {[%clk
00:03:02]} 69. h6 {[%clk 00:02:44]} Bxh6 {[%clk 00:03:19]} {[%emt 00:00:34]} 70.
Kxa3 1/2-1/2

[Event "Chess Festival Groningen 2023 | A"]
[Site "Groningen, Netherlands"]
[Date "2023.12.24"]
[Round "4.26"]
[White "Grooten, Herman"]
[Black "Ritzerveld, Noah"]
[Result "0-1"]
[TimeControl "90min/40moves + 30min + 30sec/move"]
[WhiteElo "2243"]
[BlackElo "1997"]

1. d4 {[%clk 01:30:54]} {[%emt 00:00:08]} d5 {[%clk 01:30:55]} {[%emt
00:00:09]} 2. c4 {[%clk 01:31:17]} {[%emt 00:00:05]} c6 {[%clk 01:31:21]}
{[%emt 00:00:05]} 3. Nf3 {[%clk 01:31:38]} {[%emt 00:00:13]} Nf6 {[%clk
01:31:44]} {[%emt 00:00:27]} 4. g3 {[%clk 01:32:00]} g6 {[%clk 01:32:00]} 5.
Bg2 {[%clk 01:32:17]} {[%emt 00:00:08]} Bg7 {[%clk 01:32:23]} {[%emt 00:00:06]}
6. O-O {[%clk 01:32:29]} {[%emt 00:00:18]} O-O {[%clk 01:32:43]} {[%emt
00:00:11]} 7. Nbd2 {[%clk 01:31:14]} {[%emt 00:01:44]} Ne4 {[%clk 01:27:18]}
{[%emt 00:05:55]} 8. e3 {[%clk 01:25:32]} {[%emt 00:06:15]} Bf5 {[%clk
01:19:33]} {[%emt 00:08:12]} 9. Ne1 {[%clk 01:09:31]} {[%emt 00:16:30]} Nd7
{[%clk 01:05:09]} {[%emt 00:14:54]} 10. cxd5 {[%clk 01:04:10]} {[%emt
00:05:51]} cxd5 {[%clk 01:05:19]} {[%emt 00:00:20]} 11. g4 {[%clk 01:02:44]}
{[%emt 00:02:05]} Nxd2 {[%clk 01:05:14]} {[%emt 00:00:26]} 12. Bxd2 {[%clk
01:03:03]} {[%emt 00:00:12]} Be6 {[%clk 01:05:24]} {[%emt 00:00:19]} 13. Nd3
{[%clk 01:02:48]} {[%emt 00:00:45]} Nf6 {[%clk 00:56:57]} {[%emt 00:08:58]} 14.
f3 {[%clk 01:01:27]} {[%emt 00:01:53]} b6 {[%clk 00:54:27]} {[%emt 00:02:56]}
15. Qb3 {[%clk 00:58:56]} {[%emt 00:03:04]} Bc8 {[%clk 00:49:47]} {[%emt
00:05:07]} 16. Rfc1 {[%clk 00:55:49]} {[%emt 00:03:37]} Ba6 {[%clk 00:39:33]}
{[%emt 00:10:44]} 17. Ne5 {[%clk 00:55:29]} {[%emt 00:00:53]} Rc8 {[%clk
00:34:50]} {[%emt 00:05:09]} 18. g5 {[%clk 00:52:14]} {[%emt 00:03:45]} Ne8
{[%clk 00:33:37]} {[%emt 00:01:44]} 19. Nc6 {[%clk 00:45:09]} {[%emt 00:07:36]}
Qd7 {[%clk 00:33:39]} {[%emt 00:00:27]} 20. Qxd5 {[%clk 00:43:30]} {[%emt
00:02:07]} Nd6 {[%clk 00:29:23]} {[%emt 00:04:47]} 21. Ne5 {[%clk 00:40:57]}
{[%emt 00:03:07]} Qb7 {[%clk 00:23:14]} {[%emt 00:06:34]} 22. f4 {[%clk
00:38:24]} {[%emt 00:03:07]} Qxd5 {[%clk 00:22:46]} {[%emt 00:00:54]} 23. Bxd5
{[%clk 00:38:47]} {[%emt 00:00:07]} Bxe5 {[%clk 00:22:54]} {[%emt 00:00:22]} 24.
fxe5 {[%clk 00:38:08]} {[%emt 00:01:08]} Nc4 {[%clk 00:23:05]} {[%emt
00:00:20]} 25. Rc2 {[%clk 00:27:54]} {[%emt 00:10:44]} Nxe5 {[%clk 00:19:36]}
{[%emt 00:04:00]} 26. Rac1 {[%clk 00:24:53]} {[%emt 00:03:36]} Rxc2 {[%clk
00:17:22]} {[%emt 00:02:39]} 27. Rxc2 {[%clk 00:25:00]} {[%emt 00:00:22]} Rd8
{[%clk 00:17:12]} {[%emt 00:00:43]} 28. Bg2 {[%clk 00:23:33]} {[%emt 00:01:56]}
Nc4 {[%clk 00:15:35]} {[%emt 00:02:03]} 29. Bc1 {[%clk 00:23:46]} {[%emt
00:00:19]} Rd7 {[%clk 00:13:28]} {[%emt 00:02:37]} 30. b3 {[%clk 00:18:18]}
{[%emt 00:05:56]} Nd6 {[%clk 00:13:44]} {[%emt 00:00:15]} 31. Kf2 {[%clk
00:18:05]} {[%emt 00:00:42]} Bd3 {[%clk 00:13:41]} {[%emt 00:00:36]} 32. Rc6
{[%clk 00:16:17]} {[%emt 00:02:19]} Ne4+ {[%clk 00:09:42]} {[%emt 00:04:26]} 33.
Bxe4 {[%clk 00:13:21]} {[%emt 00:03:25]} Bxe4 {[%clk 00:10:05]} {[%emt
00:00:07]} 34. Rc8+ {[%clk 00:13:48]} {[%emt 00:00:06]} Kg7 {[%clk 00:10:32]}
{[%emt 00:00:05]} 35. Bb2 {[%clk 00:14:06]} {[%emt 00:00:08]} Rd5 {[%clk
00:09:09]} {[%emt 00:01:53]} 36. h4 {[%clk 00:12:12]} {[%emt 00:02:24]} h6
{[%clk 00:07:31]} {[%emt 00:02:08]} 37. Rc7 {[%clk 00:11:45]} {[%emt 00:00:57]}
e6 {[%clk 00:04:32]} {[%emt 00:03:29]} 38. gxh6+ {[%clk 00:11:14]} {[%emt
00:01:01]} Kxh6 {[%clk 00:04:56]} {[%emt 00:00:06]} 39. Rxa7 {[%clk 00:09:38]}
{[%emt 00:02:06]} Rf5+ {[%clk 00:04:20]} {[%emt 00:01:11]} 40. Kg3 {[%clk
00:09:36]} {[%emt 00:00:41]} Rf3+ {[%clk 00:04:23]} {[%emt 00:00:17]} 41. Kg2
{[%clk 00:09:50]} {[%emt 00:00:13]} Kh5 {[%clk 00:02:19]} {[%emt 00:02:35]} 42.
d5 {[%clk 00:03:04]} {[%emt 00:07:14]} exd5 {[%clk 00:26:01]} {[%emt 00:06:48]}
43. Bd4 {[%clk 00:30:00]} {[%emt 00:03:39]} Kxh4 {[%clk 00:17:55]} {[%emt
00:08:34]} 44. Kg1 {[%clk 00:29:13]} {[%emt 00:01:14]} Kh3 {[%clk 00:15:41]}
{[%emt 00:02:44]} 45. Ra8 {[%clk 00:27:40]} {[%emt 00:02:06]} Bd3 {[%clk
00:14:10]} {[%emt 00:02:03]} 46. Rh8+ {[%clk 00:27:43]} {[%emt 00:00:22]} Kg3
{[%clk 00:14:34]} {[%emt 00:00:05]} 47. Be5+ {[%clk 00:28:05]} {[%emt
00:00:08]} Kg4 {[%clk 00:14:59]} {[%emt 00:00:07]} 48. Bd4 {[%clk 00:27:46]}
{[%emt 00:00:47]} Rf1+ {[%clk 00:12:39]} {[%emt 00:02:51]} 49. Kg2 {[%clk
00:28:11]} {[%emt 00:00:05]} Rc1 {[%clk 00:12:57]} {[%emt 00:00:12]} 50. Bxb6
{[%clk 00:26:46]} {[%emt 00:01:56]} Rc2+ {[%clk 00:13:18]} {[%emt 00:00:09]} 51.
Kg1 {[%clk 00:27:12]} {[%emt 00:00:05]} Kg3 {[%clk 00:13:42]} {[%emt 00:00:09]}
0-1

[Event "Chess Festival Groningen 2023 | A"]
[Site "Groningen, Netherlands"]
[Date "2023.12.24"]
[Round "4.27"]
[White "Schuricht, Emil Frederick"]
[Black "Aashman, Gupta"]
[Result "0-1"]
[TimeControl "90min/40moves + 30min + 30sec/move"]
[BlackFideId "45022500"]
[WhiteElo "2095"]
[BlackElo "2235"]

1. d4 {[%clk 01:30:57]} {[%emt 00:00:03]} d5 {[%clk 01:30:08]} {[%emt
00:01:23]} 2. c4 {[%clk 01:31:20]} e6 {[%clk 01:30:33]} {[%emt 00:00:06]} 3.
Nc3 {[%clk 01:31:46]} c6 {[%clk 01:30:58]} 4. e3 {[%clk 01:32:11]} Nf6 {[%clk
01:31:22]} 5. Nf3 {[%clk 01:32:36]} Nbd7 {[%clk 01:31:46]} {[%emt 00:00:07]} 6.
Qc2 {[%clk 01:33:01]} {[%emt 00:00:10]} Bd6 {[%clk 01:32:02]} {[%emt 00:00:10]}
7. Bd3 {[%clk 01:33:22]} {[%emt 00:00:06]} dxc4 {[%clk 01:19:19]} {[%emt
00:13:10]} 8. Bxc4 {[%clk 01:33:35]} {[%emt 00:00:36]} O-O {[%clk 01:16:52]}
{[%emt 00:02:40]} 9. O-O {[%clk 01:32:12]} {[%emt 00:02:13]} e5 {[%clk
01:14:54]} {[%emt 00:02:09]} 10. e4 {[%clk 01:26:04]} {[%emt 00:06:34]} exd4
{[%clk 01:03:04]} {[%emt 00:12:21]} 11. Nxd4 {[%clk 01:25:09]} {[%emt
00:01:26]} Nb6 {[%clk 00:59:32]} {[%emt 00:04:00]} 12. Be2 {[%clk 00:59:54]}
{[%emt 00:25:47]} Bxh2+ {[%clk 00:56:11]} {[%emt 00:03:52]} 13. Kxh2 {[%clk
01:00:15]} {[%emt 00:00:13]} Qxd4 {[%clk 00:56:29]} {[%emt 00:00:36]} 14. Bf4
{[%clk 00:56:11]} {[%emt 00:04:04]} Nfd5 {[%clk 00:37:46]} {[%emt 00:19:16]} 15.
Bg3 {[%clk 00:50:17]} {[%emt 00:06:22]} Nxc3 {[%clk 00:35:52]} {[%emt
00:02:23]} 16. bxc3 {[%clk 00:48:41]} {[%emt 00:02:13]} Qa4 {[%clk 00:32:21]}
{[%emt 00:03:58]} 17. Bd1 {[%clk 00:46:48]} {[%emt 00:02:34]} Qa5 {[%clk
00:25:26]} {[%emt 00:07:13]} 18. f4 {[%clk 00:45:18]} {[%emt 00:02:06]} f5
{[%clk 00:20:43]} {[%emt 00:05:05]} 19. Qb3+ {[%clk 00:43:57]} {[%emt
00:01:59]} Kh8 {[%clk 00:19:15]} {[%emt 00:01:54]} 20. Bc2 {[%clk 00:39:07]}
{[%emt 00:05:18]} fxe4 {[%clk 00:18:48]} {[%emt 00:00:55]} 21. Bxe4 {[%clk
00:39:19]} {[%emt 00:00:35]} Qh5+ {[%clk 00:14:54]} {[%emt 00:04:06]} 22. Kg1
{[%clk 00:39:38]} {[%emt 00:00:18]} Bf5 {[%clk 00:15:03]} {[%emt 00:00:17]} 23.
Bf3 {[%clk 00:38:44]} {[%emt 00:01:30]} Qg6 {[%clk 00:15:03]} {[%emt 00:00:22]}
24. Bh2 {[%clk 00:32:14]} {[%emt 00:07:01]} Rae8 {[%clk 00:13:00]} {[%emt
00:02:33]} 25. a4 {[%clk 00:26:38]} {[%emt 00:06:05]} Rf7 {[%clk 00:05:59]}
{[%emt 00:07:30]} 26. a5 {[%clk 00:23:04]} {[%emt 00:04:04]} Nd5 {[%clk
00:03:30]} {[%emt 00:02:59]} 27. Bxd5 {[%clk 00:23:25]} {[%emt 00:00:22]} cxd5
{[%clk 00:03:59]} 28. Qxd5 {[%clk 00:23:35]} {[%emt 00:00:16]} Rd7 {[%clk
00:03:56]} {[%emt 00:00:27]} 29. Qc5 {[%clk 00:22:30]} {[%emt 00:01:34]} Rd2
{[%clk 00:03:11]} {[%emt 00:01:14]} 30. Rf2 {[%clk 00:22:38]} {[%emt 00:00:35]}
b6 {[%clk 00:01:59]} {[%emt 00:01:29]} 31. axb6 {[%clk 00:19:46]} {[%emt
00:03:22]} axb6 {[%clk 00:02:28]} {[%emt 00:00:06]} 32. Qb4 {[%clk 00:14:17]}
{[%emt 00:05:55]} Rxf2 {[%clk 00:01:35]} {[%emt 00:02:10]} 33. Kxf2 {[%clk
00:14:45]} Be4 {[%clk 00:01:11]} {[%emt 00:00:17]} 34. Bg3 {[%clk 00:12:45]}
{[%emt 00:02:21]} Bd3 {[%clk 00:00:54]} {[%emt 00:00:46]} 35. Re1 {[%clk
00:12:59]} {[%emt 00:00:17]} Be4 {[%clk 00:00:34]} {[%emt 00:00:50]} 36. Qd4
{[%clk 00:08:27]} {[%emt 00:05:11]} h6 {[%clk 00:00:53]} {[%emt 00:00:07]} 37.
Re2 {[%clk 00:07:45]} {[%emt 00:01:05]} Kh7 {[%clk 00:00:47]} {[%emt 00:00:37]}
38. c4 {[%clk 00:04:02]} {[%emt 00:04:15]} Re6 {[%clk 00:00:46]} {[%emt
00:00:47]} 39. Kg1 {[%clk 00:03:02]} {[%emt 00:01:13]} Re8 {[%clk 00:00:37]}
{[%emt 00:00:38]} 40. Re3 {[%clk 00:00:54]} {[%emt 00:02:39]} Re6 {[%clk
00:00:33]} {[%emt 00:00:39]} 41. Re2 {[%clk 00:28:41]} {[%emt 00:03:12]} h5
{[%clk 00:13:48]} {[%emt 00:16:40]} 42. Bh4 {[%clk 00:22:58]} {[%emt 00:06:27]}
Bb7 {[%clk 00:09:33]} {[%emt 00:04:34]} 43. Qf2 {[%clk 00:16:47]} {[%emt
00:06:39]} Rd6 {[%clk 00:06:28]} {[%emt 00:03:35]} 44. f5 {[%clk 00:14:18]}
{[%emt 00:03:02]} Qg4 {[%clk 00:03:41]} {[%emt 00:03:19]} 45. Bg3 {[%clk
00:10:42]} {[%emt 00:04:00]} Rd1+ {[%clk 00:01:47]} {[%emt 00:02:27]} 46. Kh2
{[%clk 00:11:02]} {[%emt 00:00:10]} h4 {[%clk 00:01:32]} {[%emt 00:00:42]} 47.
Be5 {[%clk 00:03:55]} {[%emt 00:07:38]} h3 {[%clk 00:01:46]} {[%emt 00:00:15]}
48. Qg3 {[%clk 00:04:24]} {[%emt 00:00:33]} hxg2 {[%clk 00:00:40]} {[%emt
00:01:07]} 49. Qxg4 {[%clk 00:04:17]} {[%emt 00:00:35]} Rh1+ {[%clk 00:01:09]}
50. Kg3 {[%clk 00:04:41]} {[%emt 00:00:15]} g1=Q+ {[%clk 00:01:34]} {[%emt
00:00:12]} 51. Kf4 {[%clk 00:05:04]} Qc1+ {[%clk 00:01:20]} {[%emt 00:00:51]}
0-1